[Event "Early-Titled-Tuesday-Blitz-October-10-2023"]
[Site "Chess.com"]
[Date "2023.10.10"]
[Round "3"]
[White "Evandro_Barbosa"]
[Black "arenal72"]
[Result "1-0"]
[WhiteElo "2709"]
[BlackElo "2410"]
[TimeControl "180+1"]
[EndTime "8:27:58 PDT"]
[Termination "Evandro_Barbosa won by resignation"]

1. e4 {[%clk 0:02:56.8]} 1... Nc6 {[%clk 0:02:58.4]} 2. Nf3 {[%clk 0:02:57]}
2... d6 {[%clk 0:02:56.3]} 3. d4 {[%clk 0:02:56.5]} 3... Nf6 {[%clk 0:02:54.8]}
4. Nc3 {[%clk 0:02:56.9]} 4... g6 {[%clk 0:02:55.2]} 5. Be3 {[%clk 0:02:55.9]}
5... Bg7 {[%clk 0:02:49.2]} 6. Qd2 {[%clk 0:02:56.1]} 6... a6 {[%clk 0:02:44.9]}
7. Bh6 {[%clk 0:02:55.6]} 7... O-O {[%clk 0:02:34.8]} 8. Bxg7 {[%clk 0:02:48.1]}
8... Kxg7 {[%clk 0:02:31.2]} 9. O-O-O {[%clk 0:02:48.7]} 9... b5 {[%clk
0:02:30.4]} 10. Bd3 {[%clk 0:02:42.2]} 10... Bg4 {[%clk 0:02:26]} 11. Ne2 {[%clk
0:02:34.5]} 11... Qc8 {[%clk 0:01:42.9]} 12. h3 {[%clk 0:02:21]} 12... Bxf3
{[%clk 0:01:38.5]} 13. gxf3 {[%clk 0:02:21.9]} 13... e5 {[%clk 0:01:38.9]} 14.
d5 {[%clk 0:02:18.4]} 14... Ne7 {[%clk 0:01:38.4]} 15. h4 {[%clk 0:02:15.4]}
15... Nh5 {[%clk 0:01:35.8]} 16. f4 {[%clk 0:02:06.4]} 16... f6 {[%clk
0:01:29.9]} 17. Rdg1 {[%clk 0:02:04.3]} 17... c6 {[%clk 0:01:24.3]} 18. f5
{[%clk 0:01:54.5]} 18... Kf7 {[%clk 0:01:11.8]} 19. Qh6 {[%clk 0:01:47.3]} 19...
Rh8 {[%clk 0:01:10.6]} 20. Ng3 {[%clk 0:01:42.9]} 20... Nf4 {[%clk 0:01:05.9]}
21. Ne2 {[%clk 0:01:22.6]} 21... Nxd3+ {[%clk 0:01:01.9]} 22. cxd3 {[%clk
0:01:23.5]} 22... cxd5+ {[%clk 0:01:00.6]} 23. Kb1 {[%clk 0:01:24.1]} 23... dxe4
{[%clk 0:01:00.4]} 24. dxe4 {[%clk 0:01:22.4]} 24... Qf8 {[%clk 0:00:54.8]} 25.
Qd2 {[%clk 0:01:18.9]} 25... Qd8 {[%clk 0:00:53.8]} 26. Nc3 {[%clk 0:01:11.9]}
26... Rc8 {[%clk 0:00:28.6]} 27. Nd5 {[%clk 0:01:07.6]} 27... Rc5 {[%clk
0:00:25.3]} 28. Ne3 {[%clk 0:01:01.9]} 28... Qa8 {[%clk 0:00:21]} 29. f3 {[%clk
0:01:02.1]} 29... d5 {[%clk 0:00:20.1]} 30. fxg6+ {[%clk 0:00:57.2]} 30... hxg6
{[%clk 0:00:19.4]} 31. Qg2 {[%clk 0:00:51.4]} 31... dxe4 {[%clk 0:00:16.8]} 32.
fxe4 {[%clk 0:00:51.3]} 32... Rh6 {[%clk 0:00:11.5]} 33. h5 {[%clk 0:00:48.9]}
33... g5 {[%clk 0:00:09.7]} 34. Ng4 {[%clk 0:00:47.7]} 34... Rh8 {[%clk
0:00:07.6]} 35. Rf1 {[%clk 0:00:47.2]} 35... Rc6 {[%clk 0:00:05.6]} 36. Nxe5+
{[%clk 0:00:47.1]} 36... Ke6 {[%clk 0:00:05]} 37. Nxc6 {[%clk 0:00:44.1]} 37...
Qxc6 {[%clk 0:00:05.9]} 38. h6 {[%clk 0:00:43.2]} 38... Ng6 {[%clk 0:00:03.8]}
39. Qg4+ {[%clk 0:00:41.8]} 39... Ke7 {[%clk 0:00:04.3]} 40. Rc1 {[%clk
0:00:38.2]} 40... Qd6 {[%clk 0:00:03.2]} 41. Rhd1 {[%clk 0:00:36.7]} 41... Qe5
{[%clk 0:00:01.5]} 42. Rd7+ {[%clk 0:00:34.9]} 42... Kf8 {[%clk 0:00:01.4]} 43.
Rc8+ {[%clk 0:00:34.8]} 1-0

[Event "Early-Titled-Tuesday-Blitz-October-10-2023"]
[Site "Chess.com"]
[Date "2023.10.10"]
[Round "3"]
[White "FGHSMN"]
[Black "Mr_Lion22"]
[Result "1-0"]
[WhiteElo "2857"]
[BlackElo "2515"]
[TimeControl "180+1"]
[EndTime "8:27:59 PDT"]
[Termination "FGHSMN won by resignation"]

1. d4 {[%clk 0:03:00.1]} 1... d5 {[%clk 0:02:59.6]} 2. Nf3 {[%clk 0:03:00.4]}
2... c6 {[%clk 0:02:59.1]} 3. Bf4 {[%clk 0:03:00.9]} 3... Nf6 {[%clk 0:02:58.9]}
4. e3 {[%clk 0:03:01.6]} 4... g6 {[%clk 0:02:59.2]} 5. h4 {[%clk 0:03:01.1]}
5... Bg7 {[%clk 0:02:58]} 6. Be2 {[%clk 0:03:01.8]} 6... h5 {[%clk 0:02:53.9]}
7. O-O {[%clk 0:02:59.1]} 7... O-O {[%clk 0:02:54]} 8. c4 {[%clk 0:02:59.8]}
8... Bf5 {[%clk 0:02:54.3]} 9. Nc3 {[%clk 0:02:59.6]} 9... Nbd7 {[%clk 0:02:54]}
10. Qb3 {[%clk 0:02:58.6]} 10... dxc4 {[%clk 0:02:52.6]} 11. Bxc4 {[%clk
0:02:56.7]} 11... b5 {[%clk 0:02:52.7]} 12. Be2 {[%clk 0:02:57.3]} 12... a5
{[%clk 0:02:50.6]} 13. a3 {[%clk 0:02:53.6]} 13... Nb6 {[%clk 0:02:49.5]} 14.
Be5 {[%clk 0:02:51.4]} 14... a4 {[%clk 0:02:45.9]} 15. Qd1 {[%clk 0:02:48.8]}
15... Nfd5 {[%clk 0:02:43.3]} 16. Rc1 {[%clk 0:02:44.4]} 16... Nxc3 {[%clk
0:02:40.4]} 17. Rxc3 {[%clk 0:02:44.1]} 17... Rc8 {[%clk 0:02:28.7]} 18. Qc1
{[%clk 0:02:40.4]} 18... f6 {[%clk 0:02:11.1]} 19. Bg3 {[%clk 0:02:38.2]} 19...
Qd7 {[%clk 0:02:11.1]} 20. Qd2 {[%clk 0:02:28]} 20... Be4 {[%clk 0:01:57.7]} 21.
Rfc1 {[%clk 0:02:26]} 21... Rfd8 {[%clk 0:01:45.1]} 22. Qe1 {[%clk 0:02:25.7]}
22... Bd5 {[%clk 0:01:03.7]} 23. Nd2 {[%clk 0:02:23.7]} 23... f5 {[%clk
0:01:04]} 24. Nf3 {[%clk 0:02:17.9]} 24... Qe6 {[%clk 0:00:34.7]} 25. Ng5 {[%clk
0:02:08.9]} 25... Qf6 {[%clk 0:00:34.4]} 26. Be5 {[%clk 0:02:05.5]} 26... Qf8
{[%clk 0:00:34.7]} 27. Bxg7 {[%clk 0:02:03.8]} 27... Qxg7 {[%clk 0:00:35.2]} 28.
Rc5 {[%clk 0:01:59.8]} 28... e5 {[%clk 0:00:31]} 29. dxe5 {[%clk 0:01:50.3]}
29... Qxe5 {[%clk 0:00:31.9]} 30. Qa5 {[%clk 0:01:47.6]} 30... Nd7 {[%clk
0:00:29.4]} 31. R5c2 {[%clk 0:01:46.7]} 31... Nf6 {[%clk 0:00:24.7]} 32. Qc3
{[%clk 0:01:41.1]} 32... Qxc3 {[%clk 0:00:15.5]} 33. Rxc3 {[%clk 0:01:42]} 33...
Rb8 {[%clk 0:00:12.5]} 34. Bf3 {[%clk 0:01:42.3]} 34... Ne4 {[%clk 0:00:09.3]}
35. Bxe4 {[%clk 0:01:42.3]} 35... fxe4 {[%clk 0:00:10.2]} 36. Rc5 {[%clk
0:01:31.8]} 36... Rd7 {[%clk 0:00:07.2]} 37. Rd1 {[%clk 0:01:30.6]} 37... Rdb7
{[%clk 0:00:06.9]} 38. Rd4 {[%clk 0:01:29.2]} 38... Re7 {[%clk 0:00:05.3]} 39.
Nh3 {[%clk 0:01:27.3]} 39... Kg7 {[%clk 0:00:04.5]} 40. Nf4 {[%clk 0:01:27.6]}
40... Bf7 {[%clk 0:00:03.8]} 41. Rxc6 {[%clk 0:01:27.6]} 41... b4 {[%clk
0:00:03.2]} 42. axb4 {[%clk 0:01:23.9]} 42... Reb7 {[%clk 0:00:03.2]} 43. Rxe4
{[%clk 0:01:24.1]} 43... Rxb4 {[%clk 0:00:03.5]} 44. Re7 {[%clk 0:01:24.6]}
44... R8b7 {[%clk 0:00:02.8]} 45. Rxg6+ {[%clk 0:01:23]} 45... Kf8 {[%clk
0:00:02.4]} 46. Rxb7 {[%clk 0:01:23]} 46... Rxb7 {[%clk 0:00:03.3]} 47. Ra6
{[%clk 0:01:23.2]} 47... Bb3 {[%clk 0:00:02.3]} 48. Nxh5 {[%clk 0:01:23.4]}
48... Rc7 {[%clk 0:00:02.7]} 49. Nf4 {[%clk 0:01:18.6]} 49... Rc2 {[%clk
0:00:02.8]} 50. Nd3 {[%clk 0:01:19.3]} 50... Rd2 {[%clk 0:00:03.2]} 51. Nc5
{[%clk 0:01:20]} 51... Rxb2 {[%clk 0:00:03.7]} 52. Nxa4 {[%clk 0:01:19.8]} 52...
Rb1+ {[%clk 0:00:02.9]} 53. Kh2 {[%clk 0:01:19.8]} 53... Ra1 {[%clk 0:00:03.1]}
54. Nc5 {[%clk 0:01:20]} 54... Rf1 {[%clk 0:00:01.9]} 55. Nxb3 {[%clk
0:01:18.8]} 1-0

[Event "Early-Titled-Tuesday-Blitz-October-10-2023"]
[Site "Chess.com"]
[Date "2023.10.10"]
[Round "3"]
[White "koncheto"]
[Black "rasmussvane"]
[Result "0-1"]
[WhiteElo "2523"]
[BlackElo "3005"]
[TimeControl "180+1"]
[EndTime "8:28:00 PDT"]
[Termination "rasmussvane won by resignation"]

1. e4 {[%clk 0:03:00.9]} 1... c6 {[%clk 0:02:59.2]} 2. d4 {[%clk 0:03:01.2]}
2... d5 {[%clk 0:02:59.8]} 3. Nc3 {[%clk 0:03:01.8]} 3... dxe4 {[%clk
0:02:59.7]} 4. Nxe4 {[%clk 0:03:02.7]} 4... Nf6 {[%clk 0:03:00]} 5. Nxf6+ {[%clk
0:03:03.1]} 5... exf6 {[%clk 0:03:00.9]} 6. c3 {[%clk 0:03:03.7]} 6... Bd6
{[%clk 0:03:01.1]} 7. Bd3 {[%clk 0:03:03.5]} 7... O-O {[%clk 0:03:01.3]} 8. Ne2
{[%clk 0:03:03.8]} 8... Re8 {[%clk 0:03:01.7]} 9. O-O {[%clk 0:03:03.2]} 9...
Nd7 {[%clk 0:03:01.3]} 10. Ng3 {[%clk 0:03:00.5]} 10... Nf8 {[%clk 0:03:01.3]}
11. f4 {[%clk 0:03:00.8]} 11... c5 {[%clk 0:02:54.5]} 12. d5 {[%clk 0:02:41]}
12... Bd7 {[%clk 0:02:48.3]} 13. c4 {[%clk 0:02:38.5]} 13... Qc7 {[%clk
0:02:43.5]} 14. Nh5 {[%clk 0:02:28.2]} 14... b5 {[%clk 0:02:14.3]} 15. b3 {[%clk
0:02:19.5]} 15... bxc4 {[%clk 0:02:07.9]} 16. bxc4 {[%clk 0:02:19.3]} 16... Ng6
{[%clk 0:01:56.8]} 17. Qf3 {[%clk 0:01:56.7]} 17... Kh8 {[%clk 0:01:34.9]} 18.
Bb2 {[%clk 0:01:52.1]} 18... Rab8 {[%clk 0:01:34.2]} 19. Bc3 {[%clk 0:01:52.2]}
19... Bf8 {[%clk 0:01:23.1]} 20. Rae1 {[%clk 0:01:29.4]} 20... Rxe1 {[%clk
0:01:05.5]} 21. Rxe1 {[%clk 0:01:30.3]} 21... Re8 {[%clk 0:01:05.8]} 22. Rxe8
{[%clk 0:01:07.4]} 22... Bxe8 {[%clk 0:01:06.7]} 23. Qh3 {[%clk 0:01:07.8]}
23... h6 {[%clk 0:00:59.1]} 24. g3 {[%clk 0:00:32.4]} 24... Bd7 {[%clk
0:00:54.2]} 25. Qg2 {[%clk 0:00:23.1]} 25... Bg4 {[%clk 0:00:52.5]} 26. Be2
{[%clk 0:00:23.2]} 26... Bf5 {[%clk 0:00:34.4]} 27. Qf3 {[%clk 0:00:16.4]} 27...
Bd6 {[%clk 0:00:30.9]} 28. Qe3 {[%clk 0:00:11.1]} 28... Qb8 {[%clk 0:00:22.1]}
29. Kg2 {[%clk 0:00:06.3]} 29... Kg8 {[%clk 0:00:19.4]} 30. Bf3 {[%clk
0:00:02.6]} 30... Ne7 {[%clk 0:00:18.9]} 31. h3 {[%clk 0:00:02.8]} 31... Bg6
{[%clk 0:00:18.3]} 32. Be2 {[%clk 0:00:01.4]} 32... Nf5 {[%clk 0:00:18.7]} 33.
Qf2 {[%clk 0:00:01.8]} 33... Qe8 {[%clk 0:00:14.9]} 34. Bd3 {[%clk 0:00:02.2]}
34... Ne3+ {[%clk 0:00:14.8]} 35. Kf3 {[%clk 0:00:01.5]} 0-1

[Event "Early-Titled-Tuesday-Blitz-October-10-2023"]
[Site "Chess.com"]
[Date "2023.10.10"]
[Round "3"]
[White "Herman-NY"]
[Black "lluiss"]
[Result "1-0"]
[WhiteElo "2527"]
[BlackElo "2177"]
[TimeControl "180+1"]
[EndTime "8:28:00 PDT"]
[Termination "Herman-NY won on time"]

1. e4 {[%clk 0:03:00.9]} 1... c5 {[%clk 0:02:58.7]} 2. Nf3 {[%clk 0:03:01.3]}
2... d6 {[%clk 0:02:58.8]} 3. d4 {[%clk 0:03:01.9]} 3... cxd4 {[%clk 0:02:59.1]}
4. Nxd4 {[%clk 0:03:02.8]} 4... Nf6 {[%clk 0:02:59.1]} 5. Nc3 {[%clk 0:03:03.5]}
5... g6 {[%clk 0:02:59.4]} 6. Be3 {[%clk 0:03:03.1]} 6... Bg7 {[%clk 0:02:59.6]}
7. f3 {[%clk 0:03:03.8]} 7... O-O {[%clk 0:02:59.4]} 8. Qd2 {[%clk 0:03:04.5]}
8... Nc6 {[%clk 0:02:59.7]} 9. Nb3 {[%clk 0:03:05.2]} 9... a5 {[%clk 0:02:58.6]}
10. a4 {[%clk 0:03:05.2]} 10... Be6 {[%clk 0:02:58.8]} 11. Bb5 {[%clk
0:03:04.7]} 11... Rc8 {[%clk 0:02:56.7]} 12. O-O-O {[%clk 0:03:04.7]} 12... Bxb3
{[%clk 0:02:55.5]} 13. cxb3 {[%clk 0:03:04.6]} 13... Nb4 {[%clk 0:02:55.9]} 14.
Kb1 {[%clk 0:02:59.1]} 14... Nd7 {[%clk 0:02:55.7]} 15. h4 {[%clk 0:02:46.3]}
15... Ne5 {[%clk 0:02:38.2]} 16. h5 {[%clk 0:02:42.6]} 16... Qc7 {[%clk
0:02:19.7]} 17. Bh6 {[%clk 0:02:25.3]} 17... Bf6 {[%clk 0:01:49.9]} 18. hxg6
{[%clk 0:02:19.4]} 18... hxg6 {[%clk 0:01:48.3]} 19. Rh3 {[%clk 0:01:39.2]}
19... Rfd8 {[%clk 0:01:43]} 20. Rdh1 {[%clk 0:01:21.1]} 20... d5 {[%clk
0:01:17.1]} 21. exd5 {[%clk 0:00:43.8]} 21... e6 {[%clk 0:00:30.2]} 22. Bg5
{[%clk 0:00:30.6]} 22... Bg7 {[%clk 0:00:30.2]} 23. Rh8+ {[%clk 0:00:09.8]}
23... Bxh8 {[%clk 0:00:29.5]} 24. Rxh8+ {[%clk 0:00:10.7]} 24... Kg7 {[%clk
0:00:20.2]} 25. Rh1 {[%clk 0:00:05.8]} 25... Nxd5 {[%clk 0:00:14.6]} 26. Ne4
{[%clk 0:00:04]} 26... Rh8 {[%clk 0:00:06.3]} 27. Re1 {[%clk 0:00:02.9]} 27...
Nc6 {[%clk 0:00:05]} 28. g3 {[%clk 0:00:02]} 28... Ne5 {[%clk 0:00:02.9]} 29.
Be2 {[%clk 0:00:01.5]} 29... Nxf3 {[%clk 0:00:02.4]} 30. Bxf3 {[%clk 0:00:01.9]}
1-0

[Event "Early-Titled-Tuesday-Blitz-October-10-2023"]
[Site "Chess.com"]
[Date "2023.10.10"]
[Round "3"]
[White "PatzerSmashers"]
[Black "MKlose11"]
[Result "0-1"]
[WhiteElo "2428"]
[BlackElo "2609"]
[TimeControl "180+1"]
[EndTime "8:28:01 PDT"]
[Termination "MKlose11 won on time"]

1. d4 {[%clk 0:03:00.9]} 1... Nf6 {[%clk 0:02:58]} 2. c4 {[%clk 0:03:00.7]} 2...
c5 {[%clk 0:02:58.1]} 3. d5 {[%clk 0:03:00.4]} 3... b5 {[%clk 0:02:58.3]} 4.
cxb5 {[%clk 0:03:01.3]} 4... a6 {[%clk 0:02:58.7]} 5. bxa6 {[%clk 0:03:02.2]}
5... Bxa6 {[%clk 0:02:59.6]} 6. Nc3 {[%clk 0:03:02.2]} 6... d6 {[%clk
0:02:59.6]} 7. e4 {[%clk 0:03:02.3]} 7... Bxf1 {[%clk 0:02:58.8]} 8. Kxf1 {[%clk
0:03:03.2]} 8... Nbd7 {[%clk 0:02:59.5]} 9. g3 {[%clk 0:03:03]} 9... g6 {[%clk
0:03:00.4]} 10. Kg2 {[%clk 0:03:03.1]} 10... Bg7 {[%clk 0:03:01.3]} 11. Nf3
{[%clk 0:03:03.6]} 11... O-O {[%clk 0:02:58.9]} 12. Qc2 {[%clk 0:03:04.2]} 12...
Qb6 {[%clk 0:02:53.2]} 13. a4 {[%clk 0:03:00.8]} 13... Rfb8 {[%clk 0:02:46.9]}
14. Ra3 {[%clk 0:02:55.4]} 14... Ng4 {[%clk 0:02:44.4]} 15. b3 {[%clk
0:02:32.4]} 15... Qb4 {[%clk 0:02:39.5]} 16. Bb2 {[%clk 0:02:09.4]} 16... c4
{[%clk 0:02:38.9]} 17. Rha1 {[%clk 0:01:51.9]} 17... cxb3 {[%clk 0:02:35.6]} 18.
Qd2 {[%clk 0:01:52.4]} 18... Nc5 {[%clk 0:02:32.6]} 19. a5 {[%clk 0:01:32.1]}
19... h5 {[%clk 0:02:29.4]} 20. h3 {[%clk 0:01:08.3]} 20... Nxf2 {[%clk
0:02:06.3]} 21. e5 {[%clk 0:00:43.9]} 21... Nfe4 {[%clk 0:01:54.2]} 22. Qe3
{[%clk 0:00:19.3]} 22... Qc4 {[%clk 0:01:45.3]} 23. Nxe4 {[%clk 0:00:15.8]}
23... Nxe4 {[%clk 0:01:43.9]} 24. Rc1 {[%clk 0:00:09.9]} 24... Qxd5 {[%clk
0:01:43.3]} 25. Ra4 {[%clk 0:00:04.5]} 25... Nc5 {[%clk 0:01:42.5]} 26. Rd4
{[%clk 0:00:03.8]} 26... Qb7 {[%clk 0:01:35.6]} 27. exd6 {[%clk 0:00:02.8]}
27... exd6 {[%clk 0:01:30.3]} 28. Rxd6 {[%clk 0:00:02]} 28... Bxb2 {[%clk
0:01:29.3]} 29. Rxc5 {[%clk 0:00:01.8]} 29... Bg7 {[%clk 0:01:26.8]} 30. Rb6
{[%clk 0:00:01.3]} 30... Qa7 {[%clk 0:01:12.2]} 31. Qxb3 {[%clk 0:00:01.3]}
31... Rf8 {[%clk 0:01:03.6]} 32. Rbb5 {[%clk 0:00:01.3]} 32... Qe7 {[%clk
0:01:00]} 33. Rc2 {[%clk 0:00:01.9]} 33... Rac8 {[%clk 0:00:54.1]} 34. Rf2
{[%clk 0:00:02.5]} 34... Rc3 {[%clk 0:00:52.5]} 35. Qd5 {[%clk 0:00:03.1]} 35...
Rd8 {[%clk 0:00:51]} 36. Qb7 {[%clk 0:00:02.2]} 36... Rd7 {[%clk 0:00:46.7]} 37.
Qb8+ {[%clk 0:00:02.1]} 37... Kh7 {[%clk 0:00:44.4]} 38. a6 {[%clk 0:00:02.1]}
38... Qe4 {[%clk 0:00:37.8]} 0-1

[Event "Early-Titled-Tuesday-Blitz-October-10-2023"]
[Site "Chess.com"]
[Date "2023.10.10"]
[Round "3"]
[White "Vaathi_Coming"]
[Black "Hilary46"]
[Result "0-1"]
[WhiteElo "2871"]
[BlackElo "2673"]
[TimeControl "180+1"]
[EndTime "8:28:03 PDT"]
[Termination "Hilary46 won on time"]

1. b3 {[%clk 0:02:54.6]} 1... e5 {[%clk 0:02:59.6]} 2. Bb2 {[%clk 0:02:55]} 2...
Nc6 {[%clk 0:03:00.2]} 3. c4 {[%clk 0:02:53.5]} 3... Nf6 {[%clk 0:02:59.6]} 4.
Nf3 {[%clk 0:02:53.9]} 4... d6 {[%clk 0:02:57.3]} 5. e3 {[%clk 0:02:53.8]} 5...
Be7 {[%clk 0:02:46.3]} 6. d4 {[%clk 0:02:53.6]} 6... e4 {[%clk 0:02:46.8]} 7.
Nfd2 {[%clk 0:02:53.3]} 7... d5 {[%clk 0:02:44.4]} 8. Nc3 {[%clk 0:02:52.5]}
8... Bb4 {[%clk 0:02:21.1]} 9. Be2 {[%clk 0:02:45.9]} 9... Ne7 {[%clk
0:02:14.7]} 10. cxd5 {[%clk 0:02:40.4]} 10... Nexd5 {[%clk 0:02:08]} 11. Nxd5
{[%clk 0:02:40.3]} 11... Nxd5 {[%clk 0:01:55]} 12. O-O {[%clk 0:02:40]} 12... f5
{[%clk 0:01:54.9]} 13. Rc1 {[%clk 0:02:03.2]} 13... O-O {[%clk 0:01:53.2]} 14.
a3 {[%clk 0:02:03.4]} 14... Bd6 {[%clk 0:01:45]} 15. g3 {[%clk 0:01:39.4]} 15...
Be6 {[%clk 0:01:43]} 16. Nc4 {[%clk 0:01:39.3]} 16... Kh8 {[%clk 0:01:35]} 17.
Nxd6 {[%clk 0:01:38.8]} 17... Qxd6 {[%clk 0:01:35.6]} 18. Qd2 {[%clk 0:01:32.8]}
18... c6 {[%clk 0:01:30.8]} 19. b4 {[%clk 0:01:24.3]} 19... a6 {[%clk
0:01:21.4]} 20. Rc5 {[%clk 0:01:19.7]} 20... Rae8 {[%clk 0:01:19.7]} 21. Rfc1
{[%clk 0:01:10.2]} 21... g5 {[%clk 0:01:13.5]} 22. a4 {[%clk 0:01:08.1]} 22...
f4 {[%clk 0:01:13]} 23. b5 {[%clk 0:01:05.9]} 23... axb5 {[%clk 0:01:01.1]} 24.
axb5 {[%clk 0:01:04.7]} 24... fxe3 {[%clk 0:00:53.7]} 25. fxe3 {[%clk
0:01:03.8]} 25... cxb5 {[%clk 0:00:49.2]} 26. Bxb5 {[%clk 0:00:36.8]} 26... Ra8
{[%clk 0:00:49.5]} 27. Be2 {[%clk 0:00:32.6]} 27... Ra2 {[%clk 0:00:39.8]} 28.
R1c2 {[%clk 0:00:29.6]} 28... Bh3 {[%clk 0:00:16.9]} 29. Bc4 {[%clk 0:00:21.2]}
29... Nb6 {[%clk 0:00:16.2]} 30. Rc1 {[%clk 0:00:08.2]} 30... Nxc4 {[%clk
0:00:15.5]} 31. R5xc4 {[%clk 0:00:09.1]} 31... Qf6 {[%clk 0:00:14.8]} 32. Qe2
{[%clk 0:00:06.4]} 32... Rxb2 {[%clk 0:00:14.8]} 33. Qe1 {[%clk 0:00:03.5]}
33... Qf2+ {[%clk 0:00:12.8]} 34. Qxf2 {[%clk 0:00:01.9]} 34... Rbxf2 {[%clk
0:00:13.7]} 0-1

[Event "Early-Titled-Tuesday-Blitz-October-10-2023"]
[Site "Chess.com"]
[Date "2023.10.10"]
[Round "3"]
[White "Firouzja2003"]
[Black "gueraumasague"]
[Result "1-0"]
[WhiteElo "3077"]
[BlackElo "2524"]
[TimeControl "180+1"]
[EndTime "8:28:03 PDT"]
[Termination "Firouzja2003 won by checkmate"]

1. d4 {[%clk 0:03:00.9]} 1... g6 {[%clk 0:03:00.9]} 2. e4 {[%clk 0:03:01]} 2...
Nf6 {[%clk 0:03:00.2]} 3. e5 {[%clk 0:03:00]} 3... Nh5 {[%clk 0:02:59]} 4. Nf3
{[%clk 0:02:59.6]} 4... d6 {[%clk 0:02:59.3]} 5. Bc4 {[%clk 0:02:58.8]} 5... Nc6
{[%clk 0:02:56.1]} 6. O-O {[%clk 0:02:45.4]} 6... Bg7 {[%clk 0:02:28.7]} 7. exd6
{[%clk 0:02:42]} 7... cxd6 {[%clk 0:02:29.6]} 8. h3 {[%clk 0:02:41.8]} 8... O-O
{[%clk 0:02:28.9]} 9. Re1 {[%clk 0:02:39.5]} 9... Nf6 {[%clk 0:02:24.5]} 10. c3
{[%clk 0:02:37.8]} 10... Bd7 {[%clk 0:02:21.1]} 11. Bg5 {[%clk 0:02:37.7]} 11...
a6 {[%clk 0:02:17.4]} 12. Nbd2 {[%clk 0:02:38]} 12... b5 {[%clk 0:02:17]} 13.
Bb3 {[%clk 0:02:37.9]} 13... Re8 {[%clk 0:02:13.5]} 14. Ne4 {[%clk 0:02:36.7]}
14... Nxe4 {[%clk 0:02:09.5]} 15. Rxe4 {[%clk 0:02:37.6]} 15... Na5 {[%clk
0:02:07.6]} 16. Bd5 {[%clk 0:02:29.9]} 16... Bc6 {[%clk 0:01:57.1]} 17. Bxc6
{[%clk 0:02:29.8]} 17... Nxc6 {[%clk 0:01:58]} 18. d5 {[%clk 0:02:30.5]} 18...
Ne5 {[%clk 0:01:50.3]} 19. Nxe5 {[%clk 0:02:30.7]} 19... Bxe5 {[%clk 0:01:50.2]}
20. Qe2 {[%clk 0:02:31.4]} 20... Qd7 {[%clk 0:01:40.5]} 21. Bh6 {[%clk
0:02:31.2]} 21... Rac8 {[%clk 0:01:37.8]} 22. Re1 {[%clk 0:02:14.1]} 22... Rc5
{[%clk 0:01:36.7]} 23. f4 {[%clk 0:02:14.3]} 23... Bf6 {[%clk 0:01:36.2]} 24. g4
{[%clk 0:02:15]} 24... Rc7 {[%clk 0:01:01.1]} 25. f5 {[%clk 0:02:04.6]} 25...
Be5 {[%clk 0:00:49.4]} 26. fxg6 {[%clk 0:01:23.5]} 26... hxg6 {[%clk 0:00:46.3]}
27. Bf4 {[%clk 0:01:24.2]} 27... Bg7 {[%clk 0:00:44.7]} 28. h4 {[%clk
0:01:18.2]} 28... Rc4 {[%clk 0:00:38.8]} 29. Rxc4 {[%clk 0:01:17]} 29... bxc4
{[%clk 0:00:39.7]} 30. Kg2 {[%clk 0:01:17.1]} 30... e5 {[%clk 0:00:34.4]} 31.
Be3 {[%clk 0:01:14.6]} 31... Qb5 {[%clk 0:00:32.7]} 32. Rd1 {[%clk 0:01:13.7]}
32... Rb8 {[%clk 0:00:31.7]} 33. Rd2 {[%clk 0:01:14.1]} 33... a5 {[%clk
0:00:32.2]} 34. h5 {[%clk 0:01:14.3]} 34... a4 {[%clk 0:00:30.4]} 35. Qf3 {[%clk
0:01:14.6]} 35... Qd7 {[%clk 0:00:29]} 36. hxg6 {[%clk 0:01:10.3]} 36... fxg6
{[%clk 0:00:29.9]} 37. Qe4 {[%clk 0:01:10.6]} 37... Qe8 {[%clk 0:00:18.8]} 38.
Qxc4 {[%clk 0:01:08.1]} 38... a3 {[%clk 0:00:19.3]} 39. b4 {[%clk 0:01:07.5]}
39... e4 {[%clk 0:00:19.6]} 40. Bd4 {[%clk 0:01:01.4]} 40... Qd7 {[%clk
0:00:18.2]} 41. Qe2 {[%clk 0:01:01.3]} 41... Re8 {[%clk 0:00:15.7]} 42. Bxg7
{[%clk 0:01:00]} 42... Kxg7 {[%clk 0:00:16.6]} 43. Rd4 {[%clk 0:01:00.1]} 43...
e3 {[%clk 0:00:16.9]} 44. b5 {[%clk 0:00:55.6]} 44... Re5 {[%clk 0:00:16.6]} 45.
Rb4 {[%clk 0:00:46.3]} 45... Qb7 {[%clk 0:00:16.8]} 46. c4 {[%clk 0:00:46.3]}
46... Qb6 {[%clk 0:00:16.9]} 47. Rb3 {[%clk 0:00:44.9]} 47... Re4 {[%clk
0:00:16.9]} 48. Kf3 {[%clk 0:00:45]} 48... Qd4 {[%clk 0:00:17.5]} 49. Rxe3
{[%clk 0:00:41.8]} 49... Rf4+ {[%clk 0:00:14.2]} 50. Kg3 {[%clk 0:00:41.4]}
50... Qxc4 {[%clk 0:00:12.4]} 51. Re7+ {[%clk 0:00:39.9]} 51... Kh6 {[%clk
0:00:12.4]} 52. Qh2+ {[%clk 0:00:39.5]} 52... Kg5 {[%clk 0:00:11]} 53. Qh4#
{[%clk 0:00:40.4]} 1-0

[Event "Early-Titled-Tuesday-Blitz-October-10-2023"]
[Site "Chess.com"]
[Date "2023.10.10"]
[Round "3"]
[White "meoluoi91"]
[Black "Rozhkov_V"]
[Result "1-0"]
[WhiteElo "2609"]
[BlackElo "2424"]
[TimeControl "180+1"]
[EndTime "8:28:04 PDT"]
[Termination "meoluoi91 won on time"]

1. Nf3 {[%clk 0:03:00.9]} 1... Nf6 {[%clk 0:02:59.6]} 2. d4 {[%clk 0:02:59.5]}
2... d5 {[%clk 0:02:59.3]} 3. c4 {[%clk 0:02:54.2]} 3... dxc4 {[%clk 0:03:00.2]}
4. e3 {[%clk 0:02:52.6]} 4... Bg4 {[%clk 0:03:00.7]} 5. Bxc4 {[%clk 0:02:51.5]}
5... e6 {[%clk 0:03:01.3]} 6. h3 {[%clk 0:02:46.7]} 6... Bh5 {[%clk 0:03:01.2]}
7. Nbd2 {[%clk 0:02:38.9]} 7... Bd6 {[%clk 0:02:48.6]} 8. Qb3 {[%clk 0:02:37.5]}
8... O-O {[%clk 0:02:34.1]} 9. Qxb7 {[%clk 0:02:34.9]} 9... Nbd7 {[%clk
0:02:34.8]} 10. Qb3 {[%clk 0:02:31.7]} 10... Rb8 {[%clk 0:02:32.3]} 11. Qd3
{[%clk 0:02:29.1]} 11... c5 {[%clk 0:02:31.3]} 12. O-O {[%clk 0:02:26.9]} 12...
cxd4 {[%clk 0:02:26.3]} 13. exd4 {[%clk 0:02:27]} 13... e5 {[%clk 0:01:57.7]}
14. dxe5 {[%clk 0:01:38.5]} 14... Nxe5 {[%clk 0:01:58.6]} 15. Nxe5 {[%clk
0:01:38.5]} 15... Bxe5 {[%clk 0:01:59.3]} 16. Qxd8 {[%clk 0:01:35.2]} 16...
Rfxd8 {[%clk 0:02:00.2]} 17. Bb3 {[%clk 0:01:35.4]} 17... Nd5 {[%clk 0:01:37.8]}
18. Nc4 {[%clk 0:01:32.6]} 18... Bf6 {[%clk 0:01:37.2]} 19. Bd2 {[%clk
0:01:21.8]} 19... Be2 {[%clk 0:01:18]} 20. Rfe1 {[%clk 0:01:18.5]} 20... Bxc4
{[%clk 0:01:07.7]} 21. Bxc4 {[%clk 0:01:19.4]} 21... h6 {[%clk 0:01:05.5]} 22.
Rad1 {[%clk 0:01:14.2]} 22... Bxb2 {[%clk 0:00:55]} 23. Ba5 {[%clk 0:01:13.1]}
23... Nb6 {[%clk 0:00:34.2]} 24. Bb3 {[%clk 0:01:07.7]} 24... Bf6 {[%clk
0:00:25.2]} 25. g4 {[%clk 0:00:55]} 25... Rxd1 {[%clk 0:00:20.2]} 26. Rxd1
{[%clk 0:00:54.7]} 26... Rd8 {[%clk 0:00:20.9]} 27. Re1 {[%clk 0:00:51.9]} 27...
Rc8 {[%clk 0:00:11.7]} 28. Kg2 {[%clk 0:00:50.8]} 28... Rc5 {[%clk 0:00:11.2]}
29. Bb4 {[%clk 0:00:49.2]} 29... Rc8 {[%clk 0:00:10.5]} 30. Re2 {[%clk 0:00:39]}
30... Nd7 {[%clk 0:00:06.7]} 31. Bd5 {[%clk 0:00:30.5]} 31... Ne5 {[%clk
0:00:05.6]} 32. Be4 {[%clk 0:00:20.8]} 32... Rc4 {[%clk 0:00:04.5]} 33. Bd6
{[%clk 0:00:19.5]} 33... Nd7 {[%clk 0:00:02.7]} 34. Bf5 {[%clk 0:00:19.5]} 1-0